bitfinex/quotes_ETHUSD_20241120
["timestamp","ask_amount","ask_price","bid_price","bid_amount"]
[1732115449438,0.01,3090.4,3088.0,0.55]
[1732115449607,0.05013426,3090.4,3088.2,0.55]
[1732115449796,0.05013426,3090.4,3088.4,0.55]
[1732115449997,0.04013426,3090.4,3088.6,0.55]
[1732115450303,0.04013426,3090.4,3088.8,0.55]
[1732115450501,0.05013426,3090.6,3088.8,0.55]
[1732115451010,0.05013426,3090.6,3087.9,7.02372006]
[1732115451011,0.04013426,3090.6,3088.9,0.03236756]
[1732115451199,0.01,3090.5,3089.0,0.55]
[1732115451396,0.11166031,3090.4,3089.0,0.55]
[1732115451948,0.07152605,3090.4,3089.2,0.55]
[1732115452241,0.04013426,3090.7,3089.2,0.55]
[1732115452440,0.07147417,3090.3,3089.4,0.55]
[1732115452755,0.05013426,3091.0,3089.1,0.55]
[1732115453044,0.07178675,3090.9,3089.1,0.58236339]
[1732115453207,0.04013426,3090.8,3089.2,0.36152762]
[1732115453541,0.04013426,3090.8,3089.3,0.5823614]
[1732115453698,0.04013426,3090.8,3089.3,0.94388902]
[1732115453893,0.07168257,3090.7,3089.5,0.55]
[1732115454097,0.04013426,3091.2,3089.7,0.55]
[1732115454420,0.07189204,3091.1,3089.7,0.55]
[1732115454610,0.04013426,3091.0,3089.4,0.55]
[1732115454810,0.05013426,3091.0,3089.1,0.55]
[1732115455023,0.07178788,3090.9,3089.5,1.618]
[1732115455196,0.04013426,3090.8,3089.5,1.618]
[1732115455405,0.07168939,3090.7,3089.5,1.618]
[1732115455754,0.11182365,3090.7,3089.5,1.618]
[1732115456109,0.04013426,3090.7,3089.5,1.618]
[1732115456421,0.07163731,3090.6,3089.5,1.618]
[1732115456832,0.04013426,3090.9,3089.5,1.618]
[1732115457360,0.07174122,3090.8,3089.6,0.58236262]
[1732115457657,0.07174122,3090.8,3089.7,1.83833626]
[1732115457864,0.07174122,3090.8,3089.8,0.55]
[1732115458363,0.85403426,3091.5,3090.0,0.55]
[1732115458565,0.85403426,3091.5,3090.1,1.8381559]
[1732115458864,0.07205375,3091.4,3090.2,0.55]
[1732115459078,0.07205375,3091.4,3090.3,0.23881559]
[1732115459361,0.04013426,3091.7,3090.3,1.85681559]
[1732115459562,0.04013426,3091.7,3090.3,1.618]
[1732115459768,0.07215848,3091.6,3090.4,0.55]
[1732115459980,0.07215848,3091.6,3090.5,0.2168]
[1732115460127,0.7513,3092.2,3090.6,0.55]
[1732115460340,0.11255384,3092.1,3090.8,0.55]
[1732115460535,0.11255384,3092.1,3090.9,1.6177]
[1732115461287,0.803,3091.8,3090.9,1.6177]
[1732115461529,0.01,3091.9,3090.9,1.6177]
[1732115461639,0.11234647,3091.7,3090.9,1.6177]
[1732115461975,0.04013426,3091.7,3090.9,1.77947]
[1732115462138,0.803,3092.1,3090.9,1.77947]
[1732115462339,0.04013426,3092.0,3090.9,1.77947]
[1732115462869,4.0363,3092.9,3090.9,1.77947]
[1732115462870,0.04013426,3092.8,3091.0,0.77816809]
[1732115463036,0.04013426,3092.8,3091.1,0.55]
[1732115463238,0.07273296,3092.7,3091.3,0.55]
[1732115463459,0.04013426,3092.8,3091.4,0.41886948]
[1732115463690,0.04013426,3093.4,3091.5,0.55]
[1732115463844,0.05013426,3093.4,3091.5,0.55]
[1732115464047,0.07304504,3093.3,3091.7,0.55]
[1732115464248,0.04013426,3093.2,3091.8,0.21673]
[1732115464478,0.04013426,3093.2,3091.9,0.03233775]
[1732115464690,0.04013426,3093.2,3091.8,1.6172]
[1732115464894,0.04013426,3093.2,3092.0,1.6171]
[1732115464895,0.7834,3093.1,3092.0,1.6171]
[1732115465191,0.04013426,3093.0,3092.0,1.6171]
[1732115465428,0.11302511,3093.0,3092.0,1.6171]
[1732115465928,0.11302511,3093.0,3092.0,1.77881]
[1732115466302,0.07289085,3093.0,3092.1,0.58233577]
[1732115466735,0.85293426,3093.5,3092.2,1.617]
[1732115467025,0.01,3093.3,3092.2,1.617]
[1732115467234,0.79853426,3093.2,3092.2,1.617]
[1732115467539,0.79853426,3093.2,3092.3,0.03233679]
[1732115467540,0.07299527,3093.2,3092.3,0.03233679]
[1732115467741,0.11312953,3093.2,3092.3,0.38652762]
[1732115467906,0.7602,3093.0,3092.2,1.617]
[1732115468227,3.23225,3093.9,3092.2,1.617]
[1732115468228,0.07284103,3092.9,3092.2,1.7787]
[1732115468444,0.07284103,3092.9,3092.3,0.55]
[1732115468726,0.7901,3093.8,3092.4,1.84977]
[1732115468932,0.07036101,3092.8,3092.4,1.84977]
[1732115469114,0.04013426,3093.7,3092.5,0.27862976]
[1732115469325,0.04013426,3094.2,3092.6,0.58233132]
[1732115469491,0.07077711,3093.6,3092.6,1.32815294]
[1732115469692,0.7901,3094.6,3092.7,1.6167]
[1732115469893,5.11e-06,3093.5,3092.9,0.55]
[1732115470197,0.83023426,3094.6,3092.8,1.0726298]
[1732115470198,0.83023426,3094.6,3093.1,0.55]
[1732115470537,0.83023426,3094.6,3093.3,0.55]
[1732115471044,0.7901,3094.6,3093.4,1.6163]
[1732115471189,0.04013426,3095.0,3093.5,0.58232026]
[1732115471394,0.8171,3095.0,3093.7,0.55]
[1732115471629,0.10690098,3094.9,3093.6,1.83606203]
[1732115471945,0.10690098,3094.9,3093.6,1.6162]
[1732115472298,0.04013426,3094.9,3093.6,1.6162]
[1732115472500,0.06671673,3094.8,3093.6,1.6162]
[1732115472707,0.10685099,3094.8,3093.6,1.77782]
[1732115473014,0.06666477,3094.7,3093.6,1.77782]
[1732115473241,0.10679903,3094.7,3093.6,1.77782]
[1732115473447,0.8038,3094.6,3093.6,1.6162]
[1732115473663,0.04013426,3094.5,3093.6,1.6162]
[1732115473942,0.10669581,3094.5,3093.6,1.6162]
[1732115474403,0.06656155,3094.5,3093.6,1.6162]
[1732115474743,0.06656155,3094.5,3093.8,0.55]
[1732115475044,0.8168,3095.0,3093.8,0.55]
[1732115475258,0.06650939,3094.4,3093.8,0.55]
[1732115475399,9.69e-06,3094.9,3094.2,0.89]
[1732115475709,0.8102,3096.2,3092.9,3.0]
[1732115475710,0.8102,3096.2,3094.3,2.1982049]
[1732115475897,0.8102,3096.2,3094.3,2.5574989]
[1732115476102,0.05622751,3096.1,3094.5,0.55]
[1732115476439,0.8102,3096.2,3094.7,0.55]
[1732115476654,0.8102,3096.2,3094.9,0.55]
[1732115476849,0.8102,3096.2,3095.1,0.55]
[1732115477205,0.02,3096.8,3095.1,0.55]
[1732115477405,0.86064008,3096.7,3095.3,0.55]
[1732115477714,0.05654008,3096.7,3095.5,0.55]
[1732115477922,0.05654008,3096.7,3095.7,0.55]
[1732115478248,0.777,3097.4,3095.9,0.55]
[1732115478461,0.777,3097.4,3096.1,0.55]
[1732115478749,0.05685359,3097.3,3096.2,0.38652762]
[1732115478921,0.05685359,3097.3,3096.3,0.58229321]
[1732115479260,0.02,3099.3,3097.4,0.55]
[1732115479261,0.7797,3099.2,3097.4,0.55]
[1732115479438,0.7797,3099.2,3097.6,0.55]
[1732115479624,0.7797,3099.2,3097.8,0.55]
[1732115479822,0.7797,3099.2,3097.9,0.42475051]
[1732115480043,0.02,3098.9,3097.9,1.614]
[1732115480411,0.7579,3098.4,3098.0,0.42475051]
[1732115480564,0.7579,3098.4,3097.9,1.614]
[1732115480771,0.7579,3098.8,3098.1,1.6139]
[1732115481265,0.7899,3099.1,3098.1,1.6139]
[1732115481418,4.01665,3099.1,3098.1,2.1736186]
[1732115481617,0.01,3098.9,3098.2,0.5597186]
[1732115481819,0.7836,3098.4,3098.1,1.6139]
[1732115482136,3.22768,3098.2,3098.1,1.6139]
[1732115482340,6.640808,3098.2,3098.1,1.6139]
[1732115482863,3.0,3097.9,3097.0,0.5597186]
[1732115483068,0.8065,3097.6,3097.0,0.5597186]
[1732115483249,0.8065,3097.6,3095.0,0.03228855]
[1732115483250,0.01,3097.0,3096.1,0.42475051]
[1732115483569,0.01,3097.0,3092.6,5.05446505]
[1732115483570,0.01,3096.8,3095.5,0.49512693]
[1732115483726,1.038458,3096.8,3095.6,0.42475051]
[1732115484055,0.04556973,3096.7,3095.7,0.52742654]
[1732115484360,0.04556973,3096.7,3095.8,0.42475051]
[1732115484587,0.04556973,3096.7,3095.9,0.49512693]
[1732115484873,0.4327767,3096.7,3095.9,0.49512693]
[1732115485024,3.4327767,3096.7,3095.9,0.49512693]
[1732115485221,6.6620267,3096.7,3095.9,0.49512693]
[1732115485728,0.01,3096.6,3095.9,0.49512693]
[1732115485972,3.0,3096.1,3095.1,0.49512693]
[1732115486119,4.0029,3096.0,3093.9,0.42475051]
[1732115486320,0.01,3095.8,3094.0,0.52743397]
[1732115486556,1.44208357,3096.0,3094.1,0.42475051]
[1732115486760,0.04504558,3095.7,3094.2,0.52743205]
[1732115486933,0.04504558,3095.7,3094.3,0.42475051]
[1732115487132,0.04504558,3095.7,3094.4,0.5274303]
[1732115487315,0.01,3096.8,3094.4,0.5274303]
[1732115487316,0.01,3096.8,3094.5,0.42475051]
[1732115487522,0.01,3096.8,3094.6,0.52742438]
[1732115487720,0.01,3096.8,3094.8,0.55]
[1732115487721,0.04556365,3096.7,3094.8,0.55]
[1732115487952,0.01,3096.6,3094.9,0.95217761]
[1732115488169,0.37942641,3096.6,3094.9,0.95217761]
[1732115488332,0.04551241,3096.6,3094.9,0.95217761]
[1732115488661,0.01,3096.6,3095.0,0.55]
[1732115488966,0.01,3096.6,3095.1,0.95217576]
[1732115489130,0.04546036,3096.5,3095.1,0.95217576]
[1732115489456,0.04546036,3096.5,3095.2,0.55]
[1732115489658,0.04546036,3096.5,3095.3,0.95217387]
[1732115489862,0.01,3096.8,3095.3,0.52742336]
[1732115490072,0.7887,3096.9,3095.4,0.42475051]
[1732115490073,0.04540846,3096.4,3095.4,0.42475051]
[1732115490370,0.01,3097.3,3095.5,0.03229509]
[1732115490576,0.04535656,3096.3,3095.6,0.97475051]
[1732115490880,0.01,3097.7,3095.6,0.97475051]
[1732115490881,0.7828,3097.9,3095.8,0.55]
[1732115491169,0.7828,3097.9,3095.2,0.42608486]
[1732115491170,0.01,3097.5,3096.0,0.55]
[1732115491332,0.01,3097.3,3096.1,0.49512693]
[1732115491537,3.22894,3097.0,3095.3,0.42475051]
[1732115491862,3.2832827,3096.9,3095.7,0.49512693]
[1732115492076,0.32832827,3096.8,3095.7,0.49512693]
[1732115492362,0.0542427,3096.9,3095.7,0.49512693]
[1732115492567,0.04413986,3096.7,3095.7,0.49512693]
[1732115492738,3.0,3096.7,3095.7,0.49512693]
[1732115492941,0.04408797,3096.6,3095.7,0.49512693]
[1732115493136,0.67683194,3096.6,3095.7,0.49512693]
[1732115493327,0.05408797,3096.6,3095.7,0.49512693]
[1732115493762,3.05408797,3096.6,3095.7,0.49512693]
[1732115494064,0.01,3096.3,3095.3,0.49512693]
[1732115494424,3.01,3096.1,3094.8,0.03230402]
[1732115494619,0.04377493,3096.0,3094.7,0.49512693]
[1732115494925,3.23008,3095.9,3094.9,0.49512693]
[1732115495156,3.24011,3095.9,3094.9,0.49512693]
[1732115495492,0.0436693,3095.8,3094.9,0.49512693]
[1732115495691,0.0436693,3095.8,3095.0,0.42475051]
[1732115495901,0.01,3096.1,3095.1,0.49512693]
[1732115496192,0.04361688,3095.7,3095.1,0.49512693]
[1732115496396,0.01,3096.1,3095.1,0.49512693]
[1732115496717,0.04377263,3096.0,3094.1,0.49512693]
[1732115496853,0.04377263,3096.0,3094.4,0.55]
[1732115497055,0.04377263,3096.0,3094.5,0.95218246]
[1732115497564,0.8016,3095.5,3094.5,0.49512693]
[1732115497776,0.04209836,3095.4,3094.5,0.49512693]
[1732115498192,0.01,3095.2,3093.5,0.85277424]
[1732115498489,3.0,3095.0,3094.1,0.49512693]
[1732115498685,3.59692874,3095.1,3094.1,0.49512693]
[1732115498686,0.36601874,3095.1,3094.1,0.49512693]
[1732115498884,0.04183484,3094.9,3094.1,0.49512693]
[1732115499070,0.04188679,3095.0,3094.1,0.49512693]
[1732115499282,0.04178177,3094.8,3094.2,1.6157]
[1732115499459,0.01,3094.5,3094.2,1.6157]
[1732115499798,0.04157393,3094.4,3094.2,1.6157]
[1732115500695,0.7792,3094.7,3094.2,1.6157]
[1732115500905,0.0415219,3094.3,3094.2,1.6157]
[1732115501061,0.7792,3094.7,3094.2,1.6157]
[1732115501263,0.0415219,3094.3,3094.2,1.6157]
[1732115501498,0.7792,3094.7,3094.2,1.6157]
[1732115501668,3.0,3095.2,3094.2,1.6157]
[1732115501669,1.84929785,3095.2,3094.2,1.6157]
[1732115501875,3.23118,3094.9,3094.2,1.6157]
[1732115502077,3.23129,3094.8,3094.2,1.6157]
[1732115502294,3.27168765,3094.8,3094.2,1.6157]
[1732115502518,0.04039765,3094.8,3094.2,1.6157]
[1732115502821,3.23074,3095.3,3094.2,1.6157]
[1732115502965,0.323074,3095.2,3094.2,1.6157]
[1732115503162,0.0406021,3095.2,3094.3,1.26622693]
[1732115503370,3.23,3096.0,3094.3,1.69097744]
[1732115503600,3.23027,3095.8,3094.4,0.7129432]
[1732115503806,3.27115176,3095.7,3094.4,1.90399269]
[1732115504008,0.04086176,3095.7,3094.4,2.82387013]
[1732115504511,0.04086176,3095.7,3094.5,0.95218898]
[1732115504711,0.04086176,3095.7,3094.5,0.91987744]
[1732115504920,0.773,3095.9,3094.6,1.89808701]
[1732115505229,0.0409139,3095.8,3094.7,0.49512693]
[1732115505526,3.7785,3095.1,3094.8,1.6156]
[1732115505717,0.37785,3095.0,3094.8,1.6156]
[1732115505921,0.04049843,3095.0,3094.8,1.6156]
[1732115506207,3.2296,3096.4,3094.9,1.29022693]
[1732115506405,0.7722,3096.4,3095.0,0.33305774]
[1732115506717,0.7722,3096.4,3095.1,0.49512693]
[1732115506718,0.04117589,3096.3,3095.1,0.49512693]
[1732115507002,0.04117589,3096.3,3095.2,1.93777717]
[1732115507180,0.04117589,3096.3,3095.3,0.49512693]
[1732115507508,3.22976,3096.2,3095.4,1.6153]
[1732115507719,3.23004,3096.0,3095.4,1.6153]
[1732115508010,3.323004,3095.9,3095.4,1.6153]
[1732115508219,0.03972924,3095.9,3095.4,1.6153]
[1732115508507,3.23025,3095.8,3095.4,1.6153]
[1732115508714,3.0,3095.9,3095.4,1.6153]
[1732115509002,0.03967726,3095.8,3095.4,1.6153]
[1732115509316,3.0,3095.8,3095.4,1.6153]
[1732115509510,0.03962534,3095.7,3095.4,1.6153]
[1732115509867,3.7722,3096.4,3095.4,1.6153]
[1732115510108,1.023128,3096.3,3095.4,1.6153]
[1732115510306,1.06306482,3096.3,3095.4,1.6153]
[1732115510745,0.03993682,3096.3,3095.4,1.6153]
[1732115510941,3.26959682,3096.3,3095.4,1.6153]
[1732115511260,3.0,3095.9,3095.4,1.6153]
[1732115511399,0.03993682,3096.3,3095.4,1.6153]
[1732115511604,3.22978,3096.2,3095.4,1.6153]
[1732115511826,3.03983291,3096.1,3095.4,1.6153]
[1732115512027,6.26972291,3096.1,3095.4,1.6153]
[1732115512306,0.29402323,3096.0,3095.4,1.6153]
[1732115512527,0.294017,3095.9,3095.4,1.6153]
[1732115512820,0.03972859,3095.9,3095.4,2.11042693]
[1732115513038,0.7722,3096.4,3095.4,2.11042693]
[1732115513344,3.22976,3096.2,3095.4,1.6153]
[1732115513528,0.29426937,3096.1,3095.5,0.7578]
[1732115513729,0.03929626,3096.1,3095.5,0.7578]
[1732115513948,3.22998,3096.0,3095.6,1.6152]
[1732115514105,0.40785763,3095.9,3095.6,1.6152]
[1732115514305,0.0391928,3095.9,3095.6,1.6152]
[1732115514844,0.03914088,3095.8,3095.6,1.6152]
[1732115515046,3.8093,3096.1,3095.6,1.6152]
[1732115515347,3.22915,3096.8,3095.6,1.6152]
[1732115515348,0.03924471,3096.0,3095.6,1.6152]
[1732115515655,0.7816,3096.5,3095.6,1.6152]
[1732115515950,0.0391928,3095.9,3095.6,2.11032693]
[1732115516155,0.79376254,3096.7,3095.6,2.11032693]
[1732115516341,0.47083173,3097.0,3095.8,0.7605]
[1732115516511,0.03955613,3096.6,3095.9,0.91987744]
[1732115516715,0.47083173,3097.5,3096.1,0.7605]
[1732115516953,0.03950424,3096.5,3096.2,1.6149]
[1732115517160,0.47083173,3097.6,3096.2,1.6149]
[1732115517161,0.87076673,3097.6,3096.2,2.11002693]
[1732115517359,0.87076673,3097.6,3096.3,0.32952774]
[1732115517360,3.69922173,3097.6,3096.3,0.32952774]
[1732115517564,0.33305209,3097.5,3096.4,0.49512693]
[1732115517719,0.29422836,3097.4,3096.4,2.10992693]
[1732115517919,0.03884637,3097.5,3096.4,2.10992693]
[1732115518169,0.03843468,3097.3,3096.4,2.10992693]
[1732115518332,0.03848655,3097.4,3096.4,2.10992693]
[1732115518660,0.03843468,3097.3,3096.4,2.10992693]
[1732115519172,3.0,3097.5,3096.4,2.10992693]
[1732115519325,0.03838281,3097.2,3096.4,2.10992693]
[1732115519719,3.0,3097.3,3096.4,1.6148]
[1732115519968,0.03833093,3097.1,3096.4,1.6148]
[1732115520122,0.03838648,3097.2,3096.4,1.6148]
[1732115520324,0.0382824,3097.0,3096.5,0.49512693]
[1732115520624,0.0382824,3097.0,3096.4,1.6148]
[1732115520625,0.03823052,3096.9,3096.4,1.6148]
[1732115520972,3.0,3097.3,3096.4,1.6148]
[1732115521273,0.8205,3097.2,3096.4,1.6148]
[1732115521455,0.38205,3097.1,3096.4,1.6148]
[1732115521654,0.33263959,3097.0,3096.4,1.6148]
[1732115521897,3.0,3096.7,3096.4,1.6148]
[1732115522169,0.2943861,3096.6,3096.4,1.6148]
[1732115522482,3.81,3096.5,3096.4,1.6148]
[1732115522761,3.0,3096.5,3096.4,1.6148]
[1732115522968,0.03802178,3096.5,3096.4,1.6148]
[1732115523374,3.0,3096.6,3096.4,1.6148]
[1732115523672,0.03802428,3096.5,3096.4,1.6148]
[1732115523849,7.66120171,3096.5,3096.4,1.6148]
[1732115524054,7.32879119,3096.5,3096.4,1.6148]
[1732115524363,3.22999,3096.0,3095.3,0.7951]
[1732115524671,3.03771208,3095.9,3095.3,0.7951]
[1732115524826,0.03771208,3095.9,3095.3,0.7951]
[1732115525024,3.767,3096.5,3095.4,0.49512693]
[1732115525338,3.0,3096.3,3095.4,0.49512693]
[1732115525550,0.41467163,3096.4,3095.4,0.49512693]
[1732115525791,0.03786782,3096.2,3095.4,0.49512693]
[1732115525994,0.03791972,3096.3,3095.4,0.49512693]
[1732115526168,0.03781591,3096.1,3095.4,0.49512693]
[1732115526506,0.037764,3096.0,3095.5,1.6151]
[1732115526864,3.22966,3096.3,3095.5,1.6151]
[1732115527065,3.23039,3095.6,3095.5,1.6151]
[1732115527306,0.7662,3095.8,3095.5,1.6151]
[1732115527466,0.03755569,3095.6,3095.5,1.6151]
[1732115527665,3.0,3096.2,3095.5,1.6151]
[1732115527862,0.7662,3096.4,3095.5,1.6151]
[1732115527863,0.03755553,3095.6,3095.5,1.6151]
[1732115528111,0.7662,3096.4,3095.5,2.4102]
[1732115528628,0.03791894,3096.3,3095.5,2.65122]
[1732115528767,0.03791894,3096.3,3095.6,0.49512693]
[1732115528965,0.8316,3096.9,3095.7,0.31463469]
[1732115529319,0.7621,3097.3,3095.9,0.7536]
[1732115529519,0.0381789,3096.8,3095.9,1.24872693]
[1732115529815,3.99076,3097.3,3096.0,1.90138269]
[1732115530118,0.7711,3098.9,3096.0,1.90138269]
[1732115530119,3.98055,3097.7,3096.1,0.7951]
[1732115530297,0.03838643,3097.2,3096.2,0.31916096]
[1732115530632,0.69274517,3097.6,3096.2,0.31916096]
[1732115530633,3.626395,3097.6,3096.2,1.93406096]
[1732115530919,3.22883,3097.1,3096.2,2.11002693]
[1732115531070,0.7581,3097.0,3096.2,1.6149]
[1732115531271,3.22952,3096.5,3096.2,1.6149]
[1732115531513,6.22966,3096.3,3096.2,1.6149]
[1732115531713,7.02336,3096.3,3096.2,1.6149]
[1732115531923,7.06128143,3096.3,3096.2,1.6149]
[1732115532069,7.91593479,3096.3,3096.2,1.6149]
[1732115532270,7.91593479,3096.3,3095.0,0.7951]
[1732115532271,3.0,3095.6,3095.0,0.7951]
[1732115532568,3.0,3095.6,3094.0,0.7659]
[1732115532867,0.03750412,3095.5,3094.2,0.7659]
[1732115533071,0.03750412,3095.5,3094.4,0.7659]
[1732115533271,0.789,3095.5,3094.4,0.7659]
[1732115533472,0.789,3095.5,3093.7,0.82035967]
[1732115533473,3.23117,3094.9,3094.1,0.7659]
[1732115533706,3.0,3094.8,3094.1,0.7659]
[1732115533920,3.23139,3094.7,3093.8,0.775]
[1732115534276,3.23157,3094.5,3093.8,0.775]
[1732115534482,3.03703471,3094.6,3093.8,0.775]
[1732115534673,0.03692471,3094.4,3093.8,0.775]
[1732115534900,0.03697668,3094.5,3093.8,0.775]
[1732115535087,0.03687274,3094.3,3093.8,0.775]
[1732115535291,0.03692471,3094.4,3093.8,0.775]
[1732115535473,0.03682077,3094.2,3093.8,0.775]
[1732115535685,0.03687274,3094.3,3093.8,0.775]
[1732115536019,0.03676879,3094.1,3093.8,0.775]
[1732115536170,0.03682077,3094.2,3093.8,0.775]
[1732115536371,3.0,3094.9,3093.8,0.775]
[1732115536722,0.7906,3095.2,3093.8,0.775]
[1732115536723,0.03713255,3094.8,3093.8,0.775]
[1732115537067,3.7906,3095.2,3093.8,0.775]
[1732115537401,0.0370806,3094.7,3094.0,0.7951]
[1732115537595,0.8292,3095.6,3094.0,0.7951]
[1732115537998,0.03749615,3095.5,3094.2,0.7649]
[1732115538182,0.03749615,3095.5,3094.2,0.79721059]
[1732115538384,0.03749615,3095.5,3094.3,0.78592068]
[1732115538617,3.23039,3095.6,3094.3,2.40182068]
[1732115538807,0.03744422,3095.4,3094.3,2.11102693]
[1732115539432,0.03744422,3095.4,3094.4,0.82741208]
[1732115539568,3.0,3095.8,3094.5,0.83144588]
[1732115539770,0.03739307,3095.3,3094.5,2.44724588]
[1732115540026,3.0,3095.8,3094.6,0.32423459]
[1732115540204,0.03734113,3095.2,3094.7,0.49512693]
[1732115540411,3.7946,3095.9,3094.7,2.11082693]
[1732115540578,0.7946,3095.9,3094.8,0.24350615]
[1732115540829,0.03765271,3095.8,3094.9,1.29022693]
[1732115541175,0.7832,3096.3,3095.0,0.19584836]
[1732115541372,0.03631288,3095.7,3095.0,2.30647529]
[1732115541670,0.8138,3097.1,3095.5,0.55]
[1732115541830,0.01,3097.8,3095.5,0.55]
[1732115541831,0.8138,3097.5,3095.8,0.7623]
[1732115542030,0.03482872,3097.4,3096.0,0.7744]
[1732115542270,0.8138,3097.5,3096.2,0.7744]
[1732115542581,0.03482889,3097.4,3096.3,0.71955467]
[1732115542868,3.22811,3097.8,3096.3,2.33435467]
[1732115543066,0.03498447,3097.7,3096.3,2.33435467]
[1732115543449,0.03498447,3097.7,3096.4,0.7698]
[1732115543757,0.03498447,3097.7,3096.5,1.6147]
[1732115543956,0.03498447,3097.7,3096.6,0.7698]
[1732115544155,0.03498447,3097.7,3096.8,0.7698]
[1732115544461,0.1423512,3098.5,3097.0,0.7698]
[1732115544666,3.2626196,3098.4,3097.0,0.7698]
[1732115544869,3.2626196,3098.4,3097.1,1.6144]
[1732115545054,0.7762,3098.1,3097.1,1.6144]
[1732115545246,3.22801,3097.9,3097.1,1.6144]
[1732115545446,3.26284767,3097.8,3097.1,1.6144]
[1732115545652,3.0,3097.7,3097.1,1.6144]
[1732115545879,0.03231812,3097.6,3097.1,1.6144]
[1732115546242,0.7762,3098.1,3097.1,1.6144]
[1732115546441,0.03252553,3098.0,3097.1,1.6144]
[1732115546636,0.03252553,3098.0,3097.2,0.7647]
[1732115546872,3.22754,3098.4,3097.2,0.7647]
[1732115547075,0.03479323,3097.9,3097.3,1.6143]
[1732115547282,0.1423512,3098.5,3097.3,1.90171269]
[1732115547438,0.1423512,3098.5,3097.4,0.767]
[1732115547635,0.03273546,3098.4,3097.4,1.26212693]
[1732115547839,0.03273546,3098.4,3097.5,1.93058396]
[1732115548036,0.1423512,3098.5,3097.5,1.6142]
[1732115548689,0.03273546,3098.4,3097.5,1.6142]
[1732115549052,0.03273546,3098.4,3097.5,2.10932693]
[1732115549256,0.03273546,3098.4,3097.7,0.7832]
[1732115549453,0.03273546,3098.4,3097.7,1.56757962]
[1732115549684,0.1423512,3098.5,3097.8,2.10912693]
[1732115550179,0.03273689,3098.4,3097.8,2.14140397]
[1732115550491,0.1423512,3098.5,3097.8,1.93538567]
[1732115550842,0.03273689,3098.4,3097.9,0.7832]
[1732115551176,0.1423512,3098.5,3098.0,1.6139]
[1732115551688,0.03273689,3098.4,3098.0,1.6139]
[1732115551868,3.0,3098.2,3098.0,1.6139]
[1732115552071,7.35436137,3098.1,3098.0,1.6139]
[1732115552276,7.05436137,3098.1,3098.0,1.6139]
[1732115552479,3.22865,3097.3,3096.7,0.7832]
[1732115552676,3.22865,3097.3,3096.3,0.7882]
[1732115552677,0.7687,3097.3,3096.3,0.7882]
[1732115552849,0.35727259,3097.2,3096.3,1.28332693]
[1732115553044,0.35727259,3097.2,3096.4,0.49512693]
[1732115553360,0.03440759,3097.2,3096.5,0.7508]
[1732115553662,3.0,3097.5,3096.5,0.7508]
[1732115553963,0.03221749,3097.4,3096.5,0.7508]
[1732115554274,6.22826,3097.7,3096.5,0.7508]
[1732115554477,0.03462987,3097.6,3096.6,1.6145]
[1732115555086,0.03462987,3097.6,3096.7,0.49512693]
[1732115555386,0.03462987,3097.6,3096.8,0.78308795]
[1732115555592,6.2276,3098.3,3096.9,0.49512693]
[1732115555900,0.73766047,3098.1,3097.1,0.7508]
[1732115556058,0.03258047,3098.1,3097.2,0.49512693]
[1732115556258,3.3697812,3098.5,3097.2,0.49512693]
[1732115556259,3.22762,3098.3,3097.2,1.6144]
[1732115556462,0.8232,3098.1,3097.2,1.6144]
[1732115556793,0.03253656,3098.0,3097.2,1.6144]
[1732115557009,0.03253656,3098.0,3097.2,1.64668647]
[1732115557293,0.33697812,3098.4,3097.2,1.6144]
[1732115557445,0.03248475,3097.9,3097.2,1.6144]
[1732115557651,3.9655512,3098.5,3097.2,1.6144]
[1732115557962,0.03274395,3098.4,3097.2,1.6144]
[1732115558551,0.03274395,3098.4,3097.4,0.7543]
[1732115558752,0.03274395,3098.4,3097.5,1.6142]
[1732115558953,0.03274395,3098.4,3097.7,0.7543]
[1732115559151,0.03274395,3098.4,3097.7,1.21132991]
[1732115559357,0.03274395,3098.4,3097.8,1.614]
[1732115559619,0.1423512,3098.5,3097.9,0.7921]
[1732115559827,0.1423512,3098.5,3097.9,1.07518505]
[1732115559828,0.03382405,3098.3,3097.9,1.07518505]
[1732115560112,0.1423512,3098.5,3098.0,1.6139]
[1732115560690,0.03352351,3098.4,3098.0,1.6139]
[1732115561386,0.03352351,3098.4,3098.0,2.10500252]
[1732115561588,0.03352351,3098.4,3098.1,0.7951]
[1732115561795,0.1423512,3098.5,3098.1,1.08511025]
[1732115561991,0.1423512,3098.5,3098.2,1.6138]
[1732115563176,0.1423512,3098.5,3098.2,2.10490252]
[1732115563517,0.1423512,3098.5,3098.4,0.7951]
[1732115563692,0.1423512,3098.5,3098.4,1.08510025]
[1732115563893,0.1423512,3098.5,3098.4,3.18990277]
[1732115564574,0.1423512,3098.5,3098.4,2.4088]
[1732115565112,0.18351312,3098.5,3098.4,2.4088]
[1732115565479,0.18351312,3098.5,3098.4,1.6137]
[1732115566822,0.1423512,3098.5,3098.4,1.6137]
[1732115567127,4.22477616,3098.5,3098.4,1.6137]
[1732115567329,8.26997178,3098.5,3098.4,1.6137]
[1732115567829,8.81997178,3098.5,3098.4,1.6137]
[1732115567989,3.22805,3097.9,3096.9,0.7601]
[1732115568196,3.22821,3097.7,3096.9,0.7601]
[1732115568532,3.04052685,3097.6,3096.9,0.7601]
[1732115568827,0.04052685,3097.6,3096.9,0.7601]
[1732115569785,0.04052685,3097.6,3097.0,1.6143]
[1732115570016,0.04052685,3097.6,3097.0,2.53015303]
[1732115570220,3.0,3097.9,3097.0,2.10540252]
[1732115570389,0.0444983,3097.5,3097.0,1.6143]
[1732115570585,0.8285,3098.2,3097.0,1.64658879]
[1732115570839,0.04441445,3097.4,3097.1,0.24066888]
[1732115571037,0.8285,3098.2,3097.1,0.24066888]
[1732115571224,0.8285,3098.2,3097.2,1.6144]
[1732115571417,0.04495893,3098.1,3097.3,0.7951]
[1732115571726,3.22784,3098.1,3097.4,1.6143]
[1732115571930,0.04488279,3098.0,3097.4,1.6143]
[1732115572135,3.22819,3097.8,3097.4,1.6143]